fUSD/lending_fUSD_20250328
["ID","MTS","AMOUNT","RATE_DAILY","PERIOD"]
[356758262,1743129037960,-148.3249046,0.00014418,2]
[356758292,1743129040177,-124.3050954,0.00014418,2]
[356758293,1743129040187,-272.63,0.00014448,2]
[356758294,1743129040196,-272.63,0.00014478,2]
[356758295,1743129040207,-272.63,0.00014508,2]
[356758296,1743129040217,-272.63,0.00014538,2]
[356758297,1743129040226,-150.0,0.00014564,7]
[356758298,1743129040236,-330.69,0.00014564,2]
[356758299,1743129040246,-272.63,0.00014568,2]
[356758300,1743129040255,-272.63,0.00014598,2]
[356758301,1743129040265,-272.63,0.00014628,2]
[356758302,1743129040274,-272.63,0.00014658,2]
[356758303,1743129040283,-272.63,0.00014689,2]
[356758304,1743129040294,-272.63,0.00014719,2]
[356758305,1743129040304,-272.63,0.00014749,2]
[356758306,1743129040314,-272.63,0.00014779,2]
[356758307,1743129040324,-47.54192074,0.00014809,2]
[356758308,1743129040336,-225.08807926,0.00014809,2]
[356758309,1743129040346,-272.63,0.00014839,2]
[356758310,1743129040356,-9769.02288307,0.000149,2]
[356758311,1743129040366,-1224.18682128,0.000149,2]
[356758312,1743129040377,-216.35,0.00014973,2]
[356758313,1743129040386,-6241.99924287,0.00014999,2]
[356758314,1743129040396,-2625.839223,0.00014999,2]
[356758315,1743129040405,-257697.3812369,0.00015,2]
[356758316,1743129040415,-58677.22823909,0.00015,2]
[356758317,1743129040423,-74925.90552349,0.00015,2]
[356758336,1743129211789,-407.983841,0.00014825,2]
[356758337,1743129211810,-169.0706,0.000149,2]
[356758338,1743129211832,-171.15400104,0.000149,2]
[356758339,1743129211852,-153.9166441,0.000149,2]
[356758340,1743129211873,-6260.252369,0.000149,2]
[356758361,1743130231997,-469.41313121,0.00014039,2]
[356758378,1743130246231,-530.58686879,0.00014039,2]
[356758379,1743130246244,-303.0726,0.00014069,2]
[356758380,1743130246255,-169.56,0.00014122,2]
[356758381,1743130246266,-2983.28661657,0.00014169,2]
[356758382,1743130329291,152.09755927,0.00032533,30]
[356758383,1743130486106,-157.98384103,0.00013534,2]
[356758384,1743130490226,1107.17,0.00011599,2]
[356758387,1743130597288,-150.0,0.00013506,7]
[356758388,1743130597311,-48.9129749,0.00013534,2]
[356758389,1743130823072,-43.10318407,0.00013534,2]
[356758390,1743130823094,-106.89681593,0.00013548,2]
[356758393,1743130898450,-200.19612271,0.0001348,2]
[356758394,1743130923315,-143.10318407,0.00013548,2]
[356758395,1743130923339,-187.87681593,0.00013555,2]
[356758396,1743130980545,-1654.17827729,0.00013535,2]
[356758397,1743131042742,-300.0,0.00013534,2]
[356758398,1743131083793,-437.24,0.00013527,2]
[356758399,1743131103265,-202.59119274,0.00013534,2]
[356758400,1743131164296,-300.0,0.00013534,2]
[356758401,1743131182911,-166.99,0.00013509,2]
[356758402,1743131244694,-778.53320726,0.00013502,2]
[356758403,1743131278904,182.67098976,0.00013435,2]
[356758404,1743131333702,-150.0,0.00013502,2]
[356758405,1743131338282,-150.01612523,0.0001349,2]
[356758406,1743131345187,-150.0,0.0001349,2]
[356758411,1743131432109,-699.98387477,0.0001349,2]
[356758412,1743131432118,-1077.82193285,0.00013502,2]
[356758413,1743131432129,-260.06806715,0.00013502,2]
[356758414,1743131432138,-631.481723,0.00013502,2]
[356758415,1743131432161,-391.54782696,0.00013502,2]
[356758416,1743131432173,-281.23001809,0.00013502,2]
[356758417,1743131432216,-264.939999,0.00013502,2]
[356758418,1743131432228,-2333.61392235,0.00013502,2]
[356758419,1743131432239,-2624.99053379,0.00013502,2]
[356758420,1743131432271,-285.34917942,0.00013502,2]
[356758421,1743131432327,-3070.85497533,0.00013502,2]
[356758422,1743131432339,-9457.5586148,0.00013502,2]
[356758423,1743131432349,-2889.08624775,0.00013535,2]
[356758424,1743131432360,-18996.65598052,0.00013535,2]
[356758425,1743131432371,-360.07949444,0.00013535,2]
[356758426,1743131432381,-143.10318407,0.00013555,2]
[356758427,1743131432390,-1411.57009597,0.0001383,2]
[356758428,1743131432401,-325.11200482,0.0001383,2]
[356758625,1743131438056,-7699.47994967,0.0001383,2]
[356758626,1743131438212,-463.18056141,0.0001383,2]
[356758627,1743131438319,-49952.09717445,0.0001383,2]
[356758631,1743131440350,-789.98463602,0.0001383,2]
[356758632,1743131440669,-0.07658035,0.0001383,2]
[356758648,1743131443526,-153.0726,0.00013514,2]
[356758654,1743131451936,-197.973586,0.00013514,2]
[356758655,1743131507495,-152.35,0.00013514,2]
[356758657,1743131541251,-152.35,0.00013447,2]
[356758658,1743131552795,250.0,0.00013195,2]
[356758659,1743131617635,150.0,0.0001327,2]
[356758660,1743131619447,-45.623586,0.00013447,2]
[356758661,1743131619469,-108.3769942,0.00013514,2]
[356758662,1743131852074,1144.94,0.00011605,2]
[356758664,1743131856815,150.0,0.00013166,7]
[356758665,1743131954855,-157.907721,0.00013514,2]
[356758666,1743132053780,322.53,0.0001317,2]
[356758668,1743132128244,23900.0,0.00013128,2]
[356758669,1743132133388,300.02,0.00013128,2]
[356758670,1743132239194,-33.3090988,0.00013514,2]
[356758671,1743132239218,-141.39575812,0.00013523,2]
[356758673,1743132331936,610.26,0.00013143,2]
[356758674,1743132369727,-74.95424188,0.00013523,2]
[356758675,1743132369749,-107.85422112,0.00013525,2]
[356758676,1743132445116,182.81,0.0001318,2]
[356758677,1743132455260,1000.0,0.00013169,2]
[356758678,1743132464594,-150.0,0.000135,2]
[356758683,1743132509414,3724.8,0.00013144,2]
[356758688,1743132570758,250.0,0.00013193,2]
[356758696,1743132627918,291.19,0.00013289,2]
[356758714,1743132632351,-50.05,0.000135,2]
[356758715,1743132632360,-170.05,0.00013527,2]
[356758716,1743132632369,-216.35,0.00013551,2]
[356758717,1743132632378,-182.67098975,0.00013565,2]
[356758718,1743132632388,-216.35,0.00013579,2]
[356758719,1743132632398,-216.35,0.00013608,2]
[356758720,1743132632407,-202.17,0.00013627,2]
[356758721,1743132632417,-216.35,0.00013636,2]
[356758722,1743132632430,-216.35,0.00013665,2]
[356758723,1743132632440,-216.35,0.00013693,2]
[356758724,1743132632450,-418.56062317,0.000137,2]
[356758725,1743132632459,-171.87591664,0.00013722,2]
[356758726,1743132632470,-44.47408336,0.00013722,2]
[356758727,1743132632480,-216.35,0.0001375,2]
[356758728,1743132632489,-216.35,0.00013779,2]
[356758729,1743132632499,-216.35,0.00013807,2]
[356758730,1743132632508,-1863.18895674,0.0001382,2]
[356758731,1743132632517,-150.0,0.00013829,2]
[356758732,1743132632527,-39748.77987083,0.0001383,2]
[356758770,1743132638280,-902.89991527,0.0001383,2]
[356758771,1743132638446,-63521.37884892,0.0001383,2]
[356758772,1743132638456,-216.35,0.00013836,2]
[356758773,1743132638465,-216.35,0.00013864,2]
[356758774,1743132638474,-1144.94,0.00013869,2]
[356758775,1743132638483,-216.35,0.00013893,2]
[356758776,1743132638492,-216.35,0.00013921,2]
[356758777,1743132638501,-216.35,0.0001395,2]
[356758778,1743132638509,-216.35,0.00013978,2]
[356758779,1743132638519,-443.7,0.00014,2]
[356758780,1743132638527,-782.13,0.00014,2]
[356758781,1743132638536,-443.7,0.00014,2]
[356758782,1743132638545,-443.7,0.00014,2]
[356758783,1743132638554,-1558.62,0.00014,2]
[356758784,1743132638563,-216.35,0.00014006,2]
[356758785,1743132638571,-216.35,0.00014035,2]
[356758786,1743132638581,-322.57,0.0001406,2]
[356758787,1743132638590,-216.35,0.00014063,2]
[356758788,1743132638600,-246.08459593,0.00014083,2]
[356758789,1743132638610,-322.57,0.0001409,2]
[356758790,1743132638619,-443.7,0.000141,2]
[356758791,1743132638629,-804.58,0.000141,2]
[356758792,1743132638638,-443.7,0.000141,2]
[356758796,1743132638655,-782.13,0.000141,2]
[356758799,1743132638668,-443.7,0.000141,2]
[356758801,1743132638678,-782.13,0.000141,2]
[356758803,1743132638687,-443.7,0.000141,2]
[356758805,1743132638698,-782.13,0.000141,2]
[356758807,1743132638708,-443.7,0.000141,2]
[356758809,1743132638718,-782.13,0.000141,2]
[356758811,1743132638728,-443.7,0.000141,2]
[356758813,1743132638737,-782.13,0.000141,2]
[356758815,1743132638747,-883.79,0.000141,2]
[356758817,1743132638757,-322.57,0.00014119,2]
[356758819,1743132638767,-782.13,0.00014124,2]
[356758821,1743132638778,-861.21,0.00014124,2]
[356758823,1743132638788,-322.57,0.00014149,2]
[356758825,1743132638798,-322.57,0.00014178,2]
[356758827,1743132638808,-322.57,0.00014208,2]
[356758829,1743132638817,-11734.21397365,0.00014234,2]
[356758831,1743132638827,-322.57,0.00014238,2]
[356758833,1743132638837,-322.57,0.00014267,2]
[356758835,1743132638846,-322.57,0.00014297,2]
[356758837,1743132638855,-322.57,0.00014326,2]
[356758839,1743132638865,-3406.52571933,0.00014353,2]
[356758841,1743132638875,-322.57,0.00014356,2]
[356758843,1743132638884,-322.57,0.00014386,2]
[356758845,1743132638894,-322.57,0.00014415,2]
[356758848,1743132638904,-24453.86373555,0.00014429,2]
[356758850,1743132638913,-322.57,0.00014445,2]
[356758852,1743132638923,-322.57,0.00014474,2]
[356758854,1743132638932,-6926.71846234,0.00014485,2]
[356758856,1743132638942,-1000.0,0.000145,2]
[356758858,1743132638952,-322.57,0.00014504,2]
[356758860,1743132638962,-322.57,0.00014534,2]
[356758862,1743132638971,-322.57,0.00014563,2]
[356758864,1743132638981,-154.93,0.00014585,2]
[356758866,1743132638991,-322.57,0.00014593,2]
[356758868,1743132639000,-322.57,0.00014622,2]
[356758870,1743132639010,-154.93,0.00014779,2]
[356758872,1743132639020,-1000.0,0.00014815,2]
[356758874,1743132639030,-1444.9522,0.000149,2]
[356758876,1743132639039,-657.8417,0.000149,2]
[356758878,1743132639049,-542.1951,0.000149,2]
[356758880,1743132639059,-152.49346939,0.000149,2]
[356758881,1743132639069,-255.0,0.00014949,2]
[356758882,1743132639078,-502.30642094,0.00014973,2]
[356758883,1743132639088,-246.67894936,0.00014973,2]
[356758884,1743132639098,-500.0,0.00014973,2]
[356758885,1743132639107,-501.34010152,0.00014973,2]
[356758886,1743132639117,-154.93,0.00014974,2]
[356758887,1743132639127,-20000.0,0.00014999,2]
[356758888,1743132639136,-151.0,0.00014999,2]
[356758889,1743132639146,-151.0,0.00014999,2]
[356758890,1743132639155,-151.0,0.00014999,2]
[356758891,1743132639165,-151.0,0.00014999,2]
[356758892,1743132639174,-594.0,0.00015,2]
[356758893,1743132639184,-146046.97357478,0.00015,2]
[356758894,1743132640505,-0.00793087,0.00015,2]
[356758895,1743132640518,-17628.06814498,0.00015,2]
[356758896,1743132640527,-24714.47630663,0.00015,2]
[356758952,1743132643432,-540.34974952,0.00015,2]
[356758976,1743132643574,-3499.85633141,0.00015,2]
[356759009,1743132646316,-242883.39757452,0.00015,2]
[356759010,1743132646326,-1264.30295861,0.00015,2]
[356759011,1743132646336,-151.0,0.00015,2]
[356759012,1743132646346,-151.0,0.00015,2]
[356759013,1743132646356,-151.0,0.00015,2]
[356759014,1743132646365,-151.0,0.00015,2]
[356759015,1743132646375,-151.0,0.00015,2]
[356759016,1743132646384,-151.0,0.00015,2]
[356759017,1743132646393,-151.0,0.00015,2]
[356759018,1743132646402,-151.0,0.00015,2]
[356759019,1743132646411,-151.0,0.00015,2]
[356759020,1743132646421,-151.0,0.00015,2]
[356759021,1743132646431,-228.293208,0.00015,2]
[356759022,1743132646442,-151.0,0.00015,2]
[356759023,1743132646453,-151.0,0.00015,2]
[356759024,1743132646463,-151.0,0.00015,2]
[356759025,1743132646472,-151.0,0.00015,2]
[356759026,1743132646483,-151.0,0.00015,2]
[356759027,1743132646492,-151.0,0.00015,2]
[356759028,1743132646502,-151.0,0.00015,2]
[356759029,1743132646515,-151.0,0.00015,2]
[356759030,1743132646525,-151.0,0.00015,2]
[356759031,1743132646535,-151.0,0.00015,2]
[356759032,1743132646545,-151.0,0.00015,2]
[356759033,1743132646555,-151.0,0.00015,2]
[356759034,1743132646566,-151.0,0.00015,2]
[356759035,1743132646576,-151.0,0.00015,2]
[356759036,1743132646585,-151.0,0.00015,2]
[356759037,1743132646595,-151.0,0.00015,2]
[356759038,1743132646605,-151.0,0.00015,2]
[356759039,1743132646615,-151.0,0.00015,2]
[356759040,1743132646624,-269.11872,0.00015,2]
[356759041,1743132646634,-151.0,0.00015,2]
[356759042,1743132646644,-151.0,0.00015,2]
[356759043,1743132646653,-151.0,0.00015,2]
[356759044,1743132646662,-228.946259,0.00015,2]
[356759045,1743132646673,-151.0,0.00015,2]
[356759047,1743132646683,-151.0,0.00015,2]
[356759048,1743132646693,-151.0,0.00015,2]
[356759049,1743132646703,-151.0,0.00015,2]
[356759050,1743132646713,-151.0,0.00015,2]
[356759051,1743132646722,-151.0,0.00015,2]
[356759052,1743132646732,-154.671342,0.00015,2]
[356759053,1743132646741,-151.0,0.00015,2]
[356759054,1743132646751,-151.0,0.00015,2]
[356759056,1743132646761,-151.0,0.00015,2]
[356759058,1743132646771,-151.0,0.00015,2]
[356759060,1743132646781,-151.0,0.00015,2]
[356759062,1743132646791,-151.0,0.00015,2]
[356759064,1743132646801,-151.0,0.00015,2]
[356759066,1743132646811,-151.0,0.00015,2]
[356759068,1743132646821,-151.0,0.00015,2]
[356759070,1743132646832,-151.0,0.00015,2]
[356759072,1743132646842,-151.0,0.00015,2]
[356759074,1743132646851,-151.0,0.00015,2]
[356759076,1743132646861,-151.0,0.00015,2]
[356759078,1743132646870,-151.0,0.00015,2]
[356759080,1743132646879,-151.0,0.00015,2]
[356759082,1743132646889,-151.0,0.00015,2]
[356759084,1743132646899,-151.0,0.00015,2]
[356759086,1743132646908,-151.0,0.00015,2]
[356759088,1743132646918,-185.019237,0.00015,2]
[356759090,1743132646928,-151.0,0.00015,2]
[356759092,1743132646938,-151.0,0.00015,2]
[356759094,1743132646947,-151.0,0.00015,2]
[356759097,1743132646958,-161.545793,0.00015,2]
[356759099,1743132646968,-151.0,0.00015,2]
[356759100,1743132646977,-151.0,0.00015,2]
[356759102,1743132646987,-210.862789,0.00015,2]
[356759104,1743132646997,-151.0,0.00015,2]
[356759107,1743132647007,-151.0,0.00015,2]
[356759109,1743132647017,-151.0,0.00015,2]
[356759111,1743132647026,-151.0,0.00015,2]
[356759113,1743132647035,-152.165237,0.00015,2]
[356759115,1743132647045,-151.0,0.00015,2]
[356759116,1743132647054,-151.0,0.00015,2]
[356759118,1743132647064,-151.0,0.00015,2]
[356759120,1743132647073,-151.0,0.00015,2]
[356759123,1743132647082,-151.0,0.00015,2]
[356759124,1743132647092,-151.0,0.00015,2]
[356759126,1743132647101,-151.0,0.00015,2]
[356759128,1743132647111,-151.952246,0.00015,2]
[356759130,1743132647120,-151.0,0.00015,2]
[356759132,1743132647129,-151.0,0.00015,2]
[356759135,1743132647140,-151.0,0.00015,2]
[356759137,1743132647149,-151.0,0.00015,2]
[356759139,1743132647158,-151.0,0.00015,2]
[356759140,1743132647168,-151.0,0.00015,2]
[356759142,1743132647177,-151.0,0.00015,2]
[356759145,1743132647187,-151.0,0.00015,2]
[356759147,1743132647199,-151.0,0.00015,2]
[356759149,1743132647208,-151.0,0.00015,2]
[356759151,1743132647218,-151.0,0.00015,2]
[356759153,1743132647227,-151.0,0.00015,2]
[356759155,1743132647238,-151.0,0.00015,2]
[356759156,1743132647248,-151.0,0.00015,2]
[356759159,1743132647258,-151.0,0.00015,2]
[356759160,1743132647268,-151.0,0.00015,2]
[356759163,1743132647280,-151.0,0.00015,2]
[356759164,1743132647290,-151.0,0.00015,2]
[356759166,1743132647299,-164.291834,0.00015,2]
[356759168,1743132647308,-288.540503,0.00015,2]
[356759170,1743132647317,-151.0,0.00015,2]
[356759172,1743132647326,-151.0,0.00015,2]
[356759174,1743132647335,-151.0,0.00015,2]
[356759176,1743132647344,-151.0,0.00015,2]
[356759178,1743132647353,-151.0,0.00015,2]
[356759180,1743132647365,-151.0,0.00015,2]
[356759183,1743132647375,-151.0,0.00015,2]
[356759185,1743132647384,-151.0,0.00015,2]
[356759187,1743132647393,-151.0,0.00015,2]
[356759189,1743132647402,-151.0,0.00015,2]
[356759191,1743132647411,-151.0,0.00015,2]
[356759193,1743132647421,-151.0,0.00015,2]
[356759195,1743132647430,-151.0,0.00015,2]
[356759196,1743132647440,-277.140521,0.00015,2]
[356759197,1743132647449,-151.0,0.00015,2]
[356759198,1743132647458,-151.0,0.00015,2]
[356759199,1743132647469,-151.0,0.00015,2]
[356759200,1743132647478,-151.0,0.00015,2]
[356759201,1743132647487,-151.0,0.00015,2]
[356759202,1743132647497,-151.0,0.00015,2]
[356759203,1743132647506,-151.0,0.00015,2]
[356759204,1743132647515,-151.0,0.00015,2]
[356759205,1743132647525,-151.0,0.00015,2]
[356759206,1743132647534,-151.0,0.00015,2]
[356759207,1743132647543,-151.0,0.00015,2]
[356759208,1743132647553,-197.401149,0.00015,2]
[356759209,1743132647563,-219.185611,0.00015,2]
[356759210,1743132647573,-219.185611,0.00015,2]
[356759211,1743132647582,-219.185611,0.00015,2]
[356759212,1743132647591,-219.185611,0.00015,2]
[356759213,1743132647601,-219.185611,0.00015,2]
[356759214,1743132647610,-219.185611,0.00015,2]
[356759215,1743132647619,-219.185611,0.00015,2]
[356759216,1743132647628,-219.185611,0.00015,2]
[356759217,1743132647638,-219.185611,0.00015,2]
[356759218,1743132647647,-219.185611,0.00015,2]
[356759219,1743132647656,-219.185611,0.00015,2]
[356759220,1743132647666,-219.185618,0.00015,2]
[356759221,1743132647675,-151.0,0.00015,2]
[356759222,1743132647684,-151.0,0.00015,2]
[356759223,1743132647693,-151.0,0.00015,2]
[356759224,1743132647702,-151.0,0.00015,2]
[356759225,1743132647711,-300.519993,0.00015,2]
[356759226,1743132647720,-151.0,0.00015,2]
[356759227,1743132647730,-151.0,0.00015,2]
[356759228,1743132647739,-151.0,0.00015,2]
[356759229,1743132647749,-151.0,0.00015,2]
[356759230,1743132647759,-151.0,0.00015,2]
[356759231,1743132647768,-151.0,0.00015,2]
[356759232,1743132647778,-151.0,0.00015,2]
[356759233,1743132647787,-151.0,0.00015,2]
[356759234,1743132647796,-151.0,0.00015,2]
[356759235,1743132647806,-151.0,0.00015,2]
[356759236,1743132647815,-151.0,0.00015,2]
[356759237,1743132647824,-151.0,0.00015,2]
[356759238,1743132647834,-151.0,0.00015,2]
[356759239,1743132647843,-151.0,0.00015,2]
[356759240,1743132647851,-151.0,0.00015,2]
[356759241,1743132647861,-151.0,0.00015,2]
[356759242,1743132647870,-244.826832,0.00015,2]
[356759243,1743132647880,-197.505036,0.00015,2]
[356759244,1743132647890,-197.505036,0.00015,2]
[356759245,1743132647899,-197.505036,0.00015,2]
[356759246,1743132647908,-197.505036,0.00015,2]
[356759247,1743132647918,-197.505036,0.00015,2]
[356759248,1743132647927,-197.505036,0.00015,2]
[356759249,1743132647936,-197.505036,0.00015,2]
[356759250,1743132647946,-197.505036,0.00015,2]
[356759251,1743132647955,-197.505036,0.00015,2]
[356759252,1743132647965,-197.505036,0.00015,2]
[356759253,1743132647974,-197.505036,0.00015,2]
[356759254,1743132647985,-197.505036,0.00015,2]
[356759255,1743132647994,-197.505036,0.00015,2]
[356759256,1743132648003,-197.505036,0.00015,2]
[356759257,1743132648012,-197.505036,0.00015,2]
[356759258,1743132648022,-197.505036,0.00015,2]
[356759259,1743132648031,-151.0,0.00015,2]
[356759260,1743132648041,-151.0,0.00015,2]
[356759261,1743132648050,-197.505036,0.00015,2]
[356759262,1743132648061,-151.0,0.00015,2]
[356759263,1743132648071,-197.505036,0.00015,2]
[356759264,1743132648080,-152.291783,0.00015,2]
[356759265,1743132648090,-197.505036,0.00015,2]
[356759266,1743132648099,-197.505036,0.00015,2]
[356759267,1743132648109,-151.0,0.00015,2]
[356759268,1743132648119,-151.0,0.00015,2]
[356759269,1743132648129,-151.0,0.00015,2]
[356759270,1743132648138,-151.0,0.00015,2]
[356759271,1743132648148,-151.0,0.00015,2]
[356759272,1743132648157,-152.371278,0.00015,2]
[356759273,1743132648167,-151.0,0.00015,2]
[356759274,1743132648177,-151.0,0.00015,2]
[356759275,1743132648186,-151.0,0.00015,2]
[356759276,1743132648198,-151.0,0.00015,2]
[356759277,1743132648208,-151.0,0.00015,2]
[356759278,1743132648218,-151.0,0.00015,2]
[356759279,1743132648227,-151.0,0.00015,2]
[356759280,1743132648238,-179.587459,0.00015,2]
[356759281,1743132648247,-151.0,0.00015,2]
[356759282,1743132648257,-151.0,0.00015,2]
[356759283,1743132648266,-151.0,0.00015,2]
[356759284,1743132648278,-151.0,0.00015,2]
[356759285,1743132648288,-151.0,0.00015,2]
[356759286,1743132648298,-151.0,0.00015,2]
[356759287,1743132648308,-151.0,0.00015,2]
[356759288,1743132648317,-151.0,0.00015,2]
[356759289,1743132648327,-151.0,0.00015,2]
[356759290,1743132648337,-151.0,0.00015,2]
[356759291,1743132648346,-151.0,0.00015,2]
[356759292,1743132648356,-151.0,0.00015,2]
[356759293,1743132648366,-151.0,0.00015,2]
[356759294,1743132648376,-151.0,0.00015,2]
[356759295,1743132648385,-151.0,0.00015,2]
[356759296,1743132648395,-151.0,0.00015,2]
[356759297,1743132648404,-151.0,0.00015,2]
[356759298,1743132648414,-151.0,0.00015,2]
[356759299,1743132648424,-280.048647,0.00015,2]
[356759300,1743132648435,-151.0,0.00015,2]
[356759301,1743132648445,-151.0,0.00015,2]
[356759302,1743132648455,-151.0,0.00015,2]
[356759303,1743132648465,-151.0,0.00015,2]
[356759304,1743132648474,-151.0,0.00015,2]
[356759305,1743132648484,-151.0,0.00015,2]
[356759306,1743132648493,-152.732122,0.00015,2]
[356759307,1743132648502,-400.910363,0.00015,2]
[356759308,1743132648512,-400.910363,0.00015,2]
[356759309,1743132648521,-400.910363,0.00015,2]
[356759310,1743132648531,-400.910363,0.00015,2]
[356759311,1743132648540,-400.910363,0.00015,2]
[356759312,1743132648550,-400.910363,0.00015,2]
[356759313,1743132648561,-400.910363,0.00015,2]
[356759314,1743132648571,-400.910363,0.00015,2]
[356759315,1743132648581,-400.910363,0.00015,2]
[356759316,1743132648591,-400.910363,0.00015,2]
[356759317,1743132648601,-400.910363,0.00015,2]
[356759318,1743132648611,-400.910363,0.00015,2]
[356759319,1743132648621,-151.0,0.00015,2]
[356759320,1743132648631,-400.910363,0.00015,2]
[356759321,1743132648640,-151.0,0.00015,2]
[356759322,1743132648649,-400.910363,0.00015,2]
[356759323,1743132648658,-233.363494,0.00015,2]
[356759324,1743132648668,-400.910363,0.00015,2]
[356759325,1743132648677,-400.910363,0.00015,2]
[356759326,1743132648687,-400.910363,0.00015,2]
[356759327,1743132648696,-400.910363,0.00015,2]
[356759328,1743132648706,-400.910363,0.00015,2]
[356759329,1743132648715,-400.910361,0.00015,2]
[356759330,1743132648725,-151.0,0.00015,2]
[356759331,1743132648734,-151.0,0.00015,2]
[356759332,1743132648744,-301.896953,0.00015,2]
[356759333,1743132648753,-151.0,0.00015,2]
[356759334,1743132648763,-151.0,0.00015,2]
[356759335,1743132648773,-151.270516,0.00015,2]
[356759336,1743132648783,-151.0,0.00015,2]
[356759337,1743132648792,-151.0,0.00015,2]
[356759338,1743132648802,-151.0,0.00015,2]
[356759339,1743132648812,-151.0,0.00015,2]
[356759340,1743132648821,-151.0,0.00015,2]
[356759341,1743132648831,-212.765485,0.00015,2]
[356759342,1743132648842,-153.586217,0.00015,2]
[356759343,1743132648852,-212.765485,0.00015,2]
[356759344,1743132648862,-212.765485,0.00015,2]
[356759345,1743132648995,-212.765485,0.00015,2]
[356759346,1743132649006,-212.765485,0.00015,2]
[356759347,1743132649017,-212.765485,0.00015,2]
[356759348,1743132649028,-212.765485,0.00015,2]
[356759349,1743132649039,-212.765485,0.00015,2]
[356759350,1743132649049,-212.765485,0.00015,2]
[356759351,1743132649058,-212.765485,0.00015,2]
[356759352,1743132649069,-212.765485,0.00015,2]
[356759353,1743132649079,-212.765485,0.00015,2]
[356759354,1743132649089,-212.765485,0.00015,2]
[356759355,1743132649098,-212.765485,0.00015,2]
[356759356,1743132649109,-212.765485,0.00015,2]
[356759357,1743132649118,-212.765485,0.00015,2]
[356759358,1743132649128,-212.765485,0.00015,2]
[356759359,1743132649138,-212.765485,0.00015,2]
[356759360,1743132649147,-212.765487,0.00015,2]
[356759361,1743132649158,-151.0,0.00015,2]
[356759362,1743132649171,-151.0,0.00015,2]
[356759363,1743132649181,-151.0,0.00015,2]
[356759364,1743132649194,-152.571906,0.00015,2]
[356759365,1743132649206,-151.0,0.00015,2]
[356759366,1743132649216,-151.0,0.00015,2]
[356759367,1743132649227,-151.0,0.00015,2]
[356759368,1743132649238,-151.0,0.00015,2]
[356759369,1743132649248,-151.0,0.00015,2]
[356759370,1743132649258,-151.0,0.00015,2]
[356759371,1743132649268,-151.0,0.00015,2]
[356759372,1743132649279,-151.0,0.00015,2]